[Event "7th Francophone-ch 2019"]
[Site "Paris"]
[Date "2019.08.09"]
[Round "6.3"]
[White "Aloma Vidal, Robert"]
[Black "Philippe, Guillaume"]
[Result "1/2-1/2"]
[ECO "E14"]
[WhiteElo "2419"]
[BlackElo "2344"]
[Annotator "NA"]
[PlyCount "105"]
[EventDate "2019.08.04"]
[EventType "swiss"]
[EventCountry "FRA"]
[SourceTitle "playchess.com"]
[Source "ChessBase"]
[SourceQuality "1"]
[TimeControl "40/5400+30:1800+30"]

1. d4 {[%emt 0:04:28]} Nf6 {[%emt 0:00:00]} 2. Nf3 {[%emt 0:00:50]} e6 {[%emt 0:00:00]} 3. e3 {[%emt 0:00:15]} b6 {[%emt 0:01:17]} 4. Bd3 {[%emt 0:01:34]} Bb7 {[%emt 0:00:32]} 5. O-O {[%emt 0:00:24]} c5 {[%emt 0:00:13]} 6. c4 {[%emt 0:00:24]} Be7 {[%emt 0:00:12]} 7. Nc3 {[%emt 0:00:06]} cxd4 {[%emt 0:00:10]} 8. exd4 {[%emt 0:00:24]} d5 {[%emt 0:00:07]} 9. cxd5 {[%emt 0:00:05]} Nxd5 {[%emt 0:00:04]} 10. Ne5 $11 {[%emt 0:00:05]} O-O $1 {[%emt 0:00:39]} 11. Qg4 {[%emt 0:12:53]} f5 {[%emt 0:00:36]} 12. Qe2 {[%emt 0:00:11]} Nc7 {[%emt 0:00:29]} 13. Bc4 {[%emt 0:18:31]} Nba6 {[%emt 0:49:31]} 14. a3 {[%emt 0:18:19]} Qxd4 {[%emt 0:03:42]} 15. Rd1 {[%emt 0:01:11]} Qh4 {[%emt 0:00:49]} 16. b4 {[%emt 0:03:58]} Bf6 {[%emt 0:03:03]} 17. Bb2 {[%emt 0:05:15]} Rae8 {[%emt 0:07:15]} 18. Nd7 {[%emt 0:05:53]} Rf7 {[%emt 0:01:02]} 19. g3 {[%emt 0:05:22]} Qh3 {[%emt 0:01:05]} 20. f4 {[%emt 0:01:28]} h5 {[%emt 0:09:39]} 21. Nxf6+ {[%emt 0:03:35]} gxf6 {[%emt 0:01:20]} 22. Qf1 {[%emt 0:00:22]} Qxf1+ {[%emt 0:00:53]} 23. Bxf1 {[%emt 0:01:14]} h4 {[%emt 0:00:26]} 24. Bg2 {[%emt 0:01:30]} Bxg2 {[%emt 0:00:32]} 25. Kxg2 {[%emt 0:00:02]} hxg3 {[%emt 0:00:27]} 26. hxg3 {[%emt 0:00:02]} Kg7 {[%emt 0:00:44]} 27. Rd6 {[%emt 0:00:37]} Kg6 {[%emt 0:01:20]} 28. Rad1 {[%emt 0:01:08]} Rfe7 {[%emt 0:03:43]} 29. Kf3 {[%emt 0:03:12]} Rh8 {[%emt 0:00:26]} 30. Rd7 {[%emt 0:00:24]} Rxd7 {[%emt 0:03:15]} 31. Rxd7 {[%emt 0:00:02]} Rh2 {[%emt 0:00:09]} 32. Ne2 {[%emt 0:01:35]} b5 {[%emt 0:00:49]} 33. Bd4 {[%emt 0:00:50]} Nd5 {[%emt 0:01:19]} 34. Rxa7 {[%emt 0:02:41]} Nac7 {[%emt 0:00:20]} 35. Bg1 {[%emt 0:01:38]} Rh1 {[%emt 0:00:51]} 36. Kg2 {[%emt 0:00:28]} Rh8 {[%emt 0:00:07]} 37. a4 {[%emt 0:00:43]} bxa4 {[%emt 0:00:32]} 38. Rxa4 {[%emt 0:00:17]} Rb8 {[%emt 0:01:42]} 39. Bc5 {[%emt 0:01:12]} Rb7 {[%emt 0:00:40]} 40. Nd4 {[%emt 0:01:07]} e5 {[%emt 0:00:40]} 41. Nc6 {[%emt 0:31:46]} exf4 {[%emt 0:30:42]} 42. gxf4 {[%emt 0:02:00]} Nxf4+ {[%emt 0:00:05]} 43. Kf3 {[%emt 0:00:17]} Nfd5 {[%emt 0:00:42]} 44. Nd4 {[%emt 0:00:00]} Nb5 {[%emt 0:00:00]} 45. Ne6 {[%emt 0:00:00]} Nbc3 {[%emt 0:00:00]} 46. Ra8 {[%emt 0:00:00]} Nxb4 {[%emt 0:00:00]} 47. Rg8+ {[%emt 0:00:00]} Kh7 {[%emt 0:00:00]} 48. Rg1 {[%emt 0:00:00]} Nbd5 {[%emt 0:00:00]} 49. Nf8+ {[%emt 0:00:00]} Kh8 {[%emt 0:00:00]} 50. Ng6+ {[%emt 0:00:00]} Kh7 {[%emt 0:00:00]} 51. Nf8+ {[%emt 0:00:00]} Kh8 {[%emt 0:00:00]} 52. Ng6+ {[%emt 0:00:00]} Kh7 {[%emt 0:00:00]} 53. Nf8+ {[%emt 0:08:12]} 1/2-1/2

[Event "7th Francophone-ch 2019"]
[Site "Paris"]
[Date "2019.08.09"]
[Round "6.4"]
[White "Okhotnik, Vladimir"]
[Black "Bergez, Luc"]
[Result "0-1"]
[ECO "D00"]
[WhiteElo "2381"]
[BlackElo "2308"]
[Annotator "NA"]
[PlyCount "92"]
[EventDate "2019.08.04"]
[EventType "swiss"]
[EventCountry "FRA"]
[SourceTitle "playchess.com"]
[Source "ChessBase"]
[SourceQuality "1"]
[TimeControl "40/5400+30:1800+30"]

1. Nf3 {[%emt 0:00:00]} Nf6 {[%emt 0:02:07]} 2. d4 {[%emt 0:00:00]} g6 {[%emt 0:00:13]} 3. Nc3 {[%emt 0:00:04]} d5 {[%emt 0:00:35]} 4. Bf4 {[%emt 0:00:06]} c6 {[%emt 0:02:13]} 5. e3 {[%emt 0:00:10]} Bg7 {[%emt 0:00:48]} 6. h3 {[%emt 0:00:21]} O-O {[%emt 0:03:17]} 7. Bd3 {[%emt 0:00:12]} b6 $11 {[%emt 0:08:43]} 8. O-O {[%emt 0:05:32]} Bb7 {[%emt 0:00:41]} 9. Re1 {[%emt 0:01:47]} c5 {[%emt 0:01:29]} 10. Ne5 {[%emt 0:04:53]} Nfd7 {[%emt 0:11:34]} 11. Nf3 {[%emt 0:00:48]} Nf6 {[%emt 0:15:40]} 12. Be2 {[%emt 0:05:44]} Ne4 {[%emt 0:03:51]} 13. Nxe4 {[%emt 0:06:28]} dxe4 {[%emt 0:00:08]} 14. Ne5 {[%emt 0:02:17]} cxd4 {[%emt 0:01:37]} 15. Qxd4 {[%emt 0:01:17]} Qxd4 {[%emt 0:04:45]} 16. exd4 {[%emt 0:00:22]} Nc6 {[%emt 0:03:32]} 17. c3 {[%emt 0:02:58]} Nxe5 {[%emt 0:02:09]} 18. dxe5 {[%emt 0:00:24]} Rfd8 {[%emt 0:06:08]} 19. Rad1 {[%emt 0:02:03]} Bd5 {[%emt 0:02:13]} 20. a3 {[%emt 0:01:44]} Bb3 {[%emt 0:02:01]} 21. Rxd8+ {[%emt 0:01:15]} Rxd8 {[%emt 0:00:07]} 22. Ba6 {[%emt 0:00:18]} g5 {[%emt 0:04:02]} 23. Bxg5 {[%emt 0:01:49]} Bxe5 {[%emt 0:00:10]} 24. Bxe7 {[%emt 0:01:44]} Rd2 {[%emt 0:03:52]} 25. Rxe4 {[%emt 0:04:06]} Rd1+ {[%emt 0:01:54]} 26. Bf1 {[%emt 0:00:08]} f6 {[%emt 0:00:13]} 27. f4 {[%emt 0:04:51]} Bd5 {[%emt 0:01:26]} 28. Ra4 {[%emt 0:06:32]} b5 {[%emt 0:03:20]} 29. Ra6 {[%emt 0:13:33]} Bxf4 {[%emt 0:01:10]} 30. Rxf6 {[%emt 0:00:13]} Bg5 {[%emt 0:01:15]} 31. Rf8+ {[%emt 0:00:42]} Kg7 {[%emt 0:00:08]} 32. Bc5 {[%emt 0:33:39]} Be3+ {[%emt 0:00:49]} 33. Bxe3 {[%emt 0:00:00]} Kxf8 {[%emt 0:14:20]} 34. Kf2 {[%emt 0:01:00]} a6 {[%emt 0:00:30]} 35. Bc5+ {[%emt 0:00:00]} Kf7 36. a4 {[%emt 0:00:00]} Rd2+ 37. Ke3 {[%emt 0:01:30]} Rxb2 {[%emt 0:00:00]} 38. axb5 {[%emt 0:00:00]} a5 39. c4 {[%emt 0:01:00]} Bxg2 {[%emt 0:00:00]} 40. Bd3 {[%emt 0:00:00]} h5 {[%emt 0:01:21]} 41. Bd4 {[%emt 0:12:47]} Rb3 {[%emt 0:30:17]} 42. Kd2 {[%emt 0:00:06]} Bxh3 {[%emt 0:00:00]} 43. Kc2 {[%emt 0:00:00]} a4 {[%emt 0:00:00]} 44. b6 {[%emt 0:00:00]} Ke6 {[%emt 0:00:00]} 45. Be4 {[%emt 0:00:00]} Bf5 {[%emt 0:00:00]} 46. Bxf5+ {[%emt 0:00:00]} Kxf5 {[%emt 0:00:00]} 0-1

[Event "7th Francophone-ch 2019"]
[Site "Paris"]
[Date "2019.08.09"]
[Round "6.5"]
[White "Mastrovasilis, Dimitrios"]
[Black "Gerber, Richard"]
[Result "1-0"]
[ECO "B76"]
[WhiteElo "2589"]
[BlackElo "2310"]
[Annotator "ChessBase"]
[PlyCount "115"]
[EventDate "2019.08.04"]
[EventType "swiss"]
[EventCountry "FRA"]
[SourceTitle "playchess.com"]
[Source "ChessBase"]
[SourceQuality "1"]
[TimeControl "40/5400+30:1800+30"]

1. e4 {[%emt 0:03:06]} c5 {[%emt 0:00:00]} 2. Nf3 {[%emt 0:00:36]} d6 {[%emt 0:00:09]} 3. d4 {[%emt 0:00:13]} cxd4 {[%emt 0:00:04]} 4. Nxd4 {[%emt 0:00:08]} Nf6 {[%emt 0:00:05]} 5. Nc3 {[%emt 0:00:08]} g6 {[%emt 0:00:06]} 6. Be3 {[%emt 0:00:09]} Bg7 {[%emt 0:00:08]} 7. f3 {[%emt 0:00:08]} Nc6 {[%emt 0:00:05]} 8. Qd2 {[%emt 0:00:08]} O-O {[%emt 0:00:17]} 9. g4 {[%emt 0:00:10]} Be6 {[%emt 0:00:36]} 10. Nxe6 {[%emt 0:00:19]} fxe6 {[%emt 0:00:07]} 11. O-O-O {[%emt 0:00:08]} Rc8 {[%emt 0:13:56]} 12. Bc4 {[%emt 0:02:09]} Qd7 {[%emt 0:01:28]} 13. Bb3 {[%emt 0:00:06]} Na5 {[%emt 0:18:00]} 14. h4 {[%emt 0:00:22]} Nc4 {[%emt 0:04:54]} 15. Bxc4 {[%emt 0:10:51]} Rxc4 {[%emt 0:00:08]} 16. Ne2 {[%emt 0:00:08]} Rfc8 {[%emt 0:20:19]} 17. c3 {[%emt 0:00:14]} Qe8 {[%emt 0:05:10]} 18. Kb1 {[%emt 0:19:35]} Qf7 {[%emt 0:05:20]} 19. h5 {[%emt 0:08:54]} Nd7 {[%emt 0:04:57]} 20. Rh3 {[%emt 0:02:05]} a5 {[%emt 0:02:17]} 21. hxg6 {[%emt 0:04:39]} hxg6 {[%emt 0:00:16]} 22. Rdh1 {[%emt 0:01:19]} b5 {[%emt 0:06:18]} 23. Bh6 {[%emt 0:14:54]} Nf8 {[%emt 0:02:59]} 24. Bxg7 {[%emt 0:13:37]} Qxg7 {[%emt 0:00:09]} 25. Rh8+ {[%emt 0:02:08]} Qxh8 {[%emt 0:01:35]} 26. Rxh8+ {[%emt 0:00:08]} Kxh8 {[%emt 0:00:04]} 27. Qg5 {[%emt 0:00:07]} R4c7 {[%emt 0:08:48]} 28. Qxb5 {[%emt 0:01:12]} Rc5 {[%emt 0:00:40]} 29. Qa4 {[%emt 0:01:43]} e5 {[%emt 0:01:28]} 30. Nc1 {[%emt 0:00:07]} Rb8 {[%emt 0:01:53]} 31. Nb3 {[%emt 0:07:14]} Rcb5 {[%emt 0:00:27]} 32. c4 {[%emt 0:00:35]} Rb4 {[%emt 0:00:36]} 33. Qxa5 {[%emt 0:00:12]} Rxc4 {[%emt 0:00:14]} 34. Qd5 {[%emt 0:03:40]} Rc7 {[%emt 0:01:20]} 35. Nd2 {[%emt 0:03:20]} Kg7 {[%emt 0:00:32]} 36. Nc4 {[%emt 0:01:49]} Rc5 {[%emt 0:00:38]} 37. Qd3 {[%emt 0:00:02]} Ne6 {[%emt 0:00:43]} 38. b3 {[%emt 0:00:09]} Rb4 {[%emt 0:01:13]} 39. Ka1 {[%emt 0:00:27]} g5 {[%emt 0:00:57]} 40. Ne3 {[%emt 0:01:52]} Nd4 {[%emt 0:00:31]} 41. Qd2 {[%emt 0:08:12]} Nc6 {[%emt 0:20:30]} 42. Nc2 {[%emt 0:07:54]} Rb8 {[%emt 0:01:44]} 43. Qxg5+ {[%emt 0:00:08]} Kf7 {[%emt 0:00:17]} 44. Qh5+ {[%emt 0:00:21]} Kg7 {[%emt 0:00:10]} 45. Ne3 {[%emt 0:01:51]} e6 {[%emt 0:02:16]} 46. Qg5+ {[%emt 0:03:33]} Kf7 {[%emt 0:03:01]} 47. Qh6 {[%emt 0:00:34]} Nd4 {[%emt 0:04:03]} 48. g5 {[%emt 0:01:32]} Ke7 {[%emt 0:00:32]} 49. Qh7+ {[%emt 0:06:19]} Kd8 {[%emt 0:01:15]} 50. Kb2 {[%emt 0:01:59]} Nc6 {[%emt 0:01:12]} 51. g6 {[%emt 0:01:02]} Ne7 {[%emt 0:00:29]} 52. Qf7 {[%emt 0:01:03]} Kd7 {[%emt 0:00:30]} 53. Ng4 {[%emt 0:00:35]} d5 {[%emt 0:00:32]} 54. Nxe5+ {[%emt 0:01:06]} Kd6 {[%emt 0:00:10]} 55. Nd3 {[%emt 0:00:29]} Rcc8 {[%emt 0:00:31]} 56. Qf4+ {[%emt 0:00:31]} Kc6 {[%emt 0:00:25]} 57. Ne5+ {[%emt 0:00:37]} Kb5 {[%emt 0:00:32]} 58. Qf7 {[%emt 0:01:10]} 1-0

[Event "7th Francophone-ch 2019"]
[Site "Paris"]
[Date "2019.08.09"]
[Round "6.6"]
[White "Eden, James"]
[Black "David, Alberto"]
[Result "1/2-1/2"]
[ECO "B15"]
[WhiteElo "2343"]
[BlackElo "2553"]
[Annotator "ChessBase"]
[PlyCount "129"]
[EventDate "2019.08.04"]
[EventType "swiss"]
[EventCountry "FRA"]
[SourceTitle "playchess.com"]
[Source "ChessBase"]
[SourceQuality "1"]
[TimeControl "40/5400+30:1800+30"]

1. e4 {[%emt 0:01:19]} c6 {[%emt 0:00:45]} 2. d4 {[%emt 0:00:55]} d5 {[%emt 0:00:06]} 3. Nc3 {[%emt 0:00:20]} g6 {[%emt 0:02:03]} 4. Be3 {[%emt 0:05:52]} Bg7 {[%emt 0:18:24]} 5. Qd2 {[%emt 0:02:26]} dxe4 {[%emt 0:03:24]} 6. Nxe4 {[%emt 0:06:18]} Nd7 {[%emt 0:00:06]} 7. O-O-O {[%emt 0:08:09]} Ngf6 {[%emt 0:03:11]} 8. Nxf6+ {[%emt 0:01:52]} Nxf6 {[%emt 0:00:05]} 9. f3 {[%emt 0:00:46]} Be6 {[%emt 0:05:01]} 10. Kb1 {[%emt 0:03:17]} Nd5 {[%emt 0:03:09]} 11. Bh6 {[%emt 0:06:23]} Bxh6 {[%emt 0:01:20]} 12. Qxh6 {[%emt 0:00:32]} Qb6 {[%emt 0:00:17]} 13. Qd2 {[%emt 0:02:41]} O-O-O {[%emt 0:00:55]} 14. Bc4 {[%emt 0:01:01]} Nc7 {[%emt 0:14:07]} 15. Bxe6+ {[%emt 0:02:46]} Nxe6 {[%emt 0:00:09]} 16. Ne2 {[%emt 0:00:28]} Nxd4 {[%emt 0:04:50]} 17. Nxd4 {[%emt 0:00:43]} e5 {[%emt 0:00:07]} 18. Qg5 {[%emt 0:05:58]} exd4 {[%emt 0:03:01]} 19. Qf6 {[%emt 0:00:45]} Rhf8 {[%emt 0:03:20]} 20. Rhe1 {[%emt 0:01:43]} c5 {[%emt 0:05:03]} 21. Qg7 {[%emt 0:01:55]} Qc7 {[%emt 0:00:31]} 22. Qxh7 {[%emt 0:08:26]} Rh8 {[%emt 0:01:18]} 23. Qg7 {[%emt 0:00:07]} Rxh2 {[%emt 0:00:06]} 24. Re2 {[%emt 0:01:01]} Qd7 {[%emt 0:12:22]} 25. Qf6 {[%emt 0:03:27]} Rh5 {[%emt 0:13:46]} 26. g4 {[%emt 0:02:45]} Rd5 {[%emt 0:03:21]} 27. Re7 {[%emt 0:01:34]} Rd6 {[%emt 0:00:40]} 28. Qxf7 {[%emt 0:01:05]} Qc6 {[%emt 0:00:03]} 29. b3 {[%emt 0:02:53]} Rf6 {[%emt 0:01:26]} 30. Rc7+ {[%emt 0:00:27]} Qxc7 {[%emt 0:00:03]} 31. Qxf6 {[%emt 0:00:07]} Qd6 {[%emt 0:00:02]} 32. Qxd6 {[%emt 0:02:15]} Rxd6 {[%emt 0:00:04]} 33. c3 {[%emt 0:00:30]} Rf6 {[%emt 0:01:28]} 34. cxd4 {[%emt 0:00:24]} Rxf3 {[%emt 0:01:11]} 35. dxc5 {[%emt 0:00:09]} Rf4 {[%emt 0:00:14]} 36. Rg1 {[%emt 0:01:30]} Kc7 {[%emt 0:00:27]} 37. a3 {[%emt 0:01:40]} g5 {[%emt 0:00:46]} 38. Rg3 {[%emt 0:01:27]} Kc6 {[%emt 0:00:20]} 39. b4 {[%emt 0:00:38]} a5 {[%emt 0:01:00]} 40. bxa5 {[%emt 0:00:34]} Kxc5 {[%emt 0:00:17]} 41. Rb3 {[%emt 0:31:24]} Kc6 {[%emt 0:30:17]} 42. Rb6+ {[%emt 0:01:00]} Kc7 {[%emt 0:00:04]} 43. Rb4 {[%emt 0:00:06]} Rf1+ {[%emt 0:00:00]} 44. Kc2 {[%emt 0:00:00]} Rg1 {[%emt 0:00:00]} 45. Kd2 {[%emt 0:00:00]} Rg3 {[%emt 0:00:00]} 46. Ke2 {[%emt 0:00:00]} Rxa3 {[%emt 0:00:00]} 47. Rb5 {[%emt 0:00:00]} Kd6 {[%emt 0:00:00]} 48. Rxg5 {[%emt 0:00:00]} Rb3 {[%emt 0:00:00]} 49. Kf2 {[%emt 0:00:00]} Ke6 {[%emt 0:00:00]} 50. Rf5 {[%emt 0:00:00]} b6 {[%emt 0:00:00]} 51. axb6 {[%emt 0:00:00]} Rxb6 {[%emt 0:00:00]} 52. Kg3 {[%emt 0:00:00]} Rb8 {[%emt 0:00:00]} 53. Kf4 {[%emt 0:00:00]} Ra8 {[%emt 0:00:29]} 54. Kg3 {[%emt 0:00:00]} Rg8 {[%emt 0:00:25]} 55. Rf4 {[%emt 0:00:00]} Ke5 {[%emt 0:00:09]} 56. Kf3 {[%emt 0:00:00]} Ke6 {[%emt 0:00:47]} 57. Kg3 {[%emt 0:04:31]} Ke5 {[%emt 0:00:05]} 58. Rf1 {[%emt 0:00:34]} Ke6 {[%emt 0:00:26]} 59. Rf2 {[%emt 0:00:17]} Ke5 {[%emt 0:02:34]} 60. Rf4 {[%emt 0:00:29]} Ke6 {[%emt 0:00:17]} 61. Kh4 {[%emt 0:02:39]} Ke5 {[%emt 0:00:08]} 62. Rf7 {[%emt 0:00:50]} Ke6 {[%emt 0:02:10]} 63. Rf5 {[%emt 0:03:55]} Rh8+ {[%emt 0:00:20]} 64. Rh5 {[%emt 0:00:34]} Rg8 {[%emt 0:00:14]} 65. Rf5 {[%emt 0:19:03] Ke5} 1/2-1/2

[Event "7th Francophone-ch 2019"]
[Site "Paris"]
[Date "2019.08.09"]
[Round "6.7"]
[White "Shchekachev, Andrei"]
[Black "Le Goff, Ronan"]
[Result "1-0"]
[ECO "A07"]
[WhiteElo "2531"]
[BlackElo "2281"]
[Annotator "ChessBase"]
[PlyCount "141"]
[EventDate "2019.08.04"]
[EventType "swiss"]
[EventCountry "FRA"]
[SourceTitle "playchess.com"]
[Source "ChessBase"]
[SourceQuality "1"]
[TimeControl "40/5400+30:1800+30"]

1. Nf3 {[%emt 0:00:00]} d5 {[%emt 0:06:01]} 2. g3 {[%emt 0:01:30]} Nf6 {[%emt 0:01:38]} 3. Bg2 {[%emt 0:00:32]} e6 {[%emt 0:00:08]} 4. O-O {[%emt 0:00:10]} Be7 {[%emt 0:00:05]} 5. d3 {[%emt 0:00:10]} O-O {[%emt 0:00:06]} 6. Bf4 {[%emt 0:00:13]} Nc6 {[%emt 0:04:06]} 7. d4 {[%emt 0:00:51]} a6 {[%emt 0:05:25]} 8. Ne5 {[%emt 0:13:29]} Nxe5 {[%emt 0:04:40]} 9. dxe5 {[%emt 0:00:13]} Nd7 {[%emt 0:03:29]} 10. e4 {[%emt 0:03:32]} c6 {[%emt 0:05:00]} 11. h4 {[%emt 0:11:37]} f6 {[%emt 0:07:09]} 12. exf6 {[%emt 0:01:51]} Bxf6 {[%emt 0:01:03]} 13. Bc1 {[%emt 0:02:00]} Nc5 {[%emt 0:03:48]} 14. Nd2 {[%emt 0:04:21]} e5 {[%emt 0:07:34]} 15. exd5 {[%emt 0:01:42]} cxd5 {[%emt 0:01:24]} 16. Nb3 {[%emt 0:00:08]} Ne4 {[%emt 0:00:31]} 17. c4 {[%emt 0:00:24]} dxc4 {[%emt 0:05:10]} 18. Bxe4 {[%emt 0:06:32]} Qxd1 {[%emt 0:00:41]} 19. Rxd1 {[%emt 0:00:08]} cxb3 {[%emt 0:00:10]} 20. axb3 {[%emt 0:00:08]} Bg4 {[%emt 0:04:32]} 21. f3 {[%emt 0:06:17]} Be6 {[%emt 0:02:03]} 22. b4 {[%emt 0:08:23]} Be7 {[%emt 0:06:37]} 23. Bd2 {[%emt 0:08:46]} Bb3 {[%emt 0:03:28]} 24. Re1 {[%emt 0:04:25]} Rad8 {[%emt 0:00:38]} 25. Bc3 {[%emt 0:00:07]} Bd5 {[%emt 0:00:46]} 26. f4 {[%emt 0:04:23]} Bxe4 {[%emt 0:01:44]} 27. Rxe4 {[%emt 0:00:02]} Rd3 {[%emt 0:01:09]} 28. Kg2 {[%emt 0:01:32]} Bd6 {[%emt 0:02:44]} 29. fxe5 {[%emt 0:01:50]} Be7 {[%emt 0:00:39]} 30. h5 {[%emt 0:06:25]} Rf5 {[%emt 0:05:33]} 31. Rh1 {[%emt 0:01:31]} h6 {[%emt 0:04:13]} 32. e6 {[%emt 0:03:05]} Rff3 {[%emt 0:06:00]} 33. Rg4 {[%emt 0:03:07]} Bg5 {[%emt 0:00:15]} 34. Rf1 {[%emt 0:03:16]} Rxf1 {[%emt 0:00:54]} 35. Kxf1 {[%emt 0:00:02]} Rf3+ {[%emt 0:00:46]} 36. Kg1 {[%emt 0:00:25]} Re3 {[%emt 0:01:39]} 37. Bd2 {[%emt 0:01:02]} Re5 {[%emt 0:01:25]} 38. Bxg5 {[%emt 0:00:08]} hxg5 {[%emt 0:00:06]} 39. Kf2 {[%emt 0:00:16]} Kf8 {[%emt 0:00:49]} 40. Rc4 {[%emt 0:01:25]} Rxe6 {[%emt 0:00:31]} 41. Rc8+ {[%emt 0:31:14]} Kf7 {[%emt 0:31:12]} 42. Rc7+ {[%emt 0:00:13]} Kg8 {[%emt 0:02:22]} 43. Rxb7 {[%emt 0:00:24]} g4 {[%emt 0:02:03]} 44. b5 {[%emt 0:00:00]} axb5 {[%emt 0:00:00]} 45. Rxb5 {[%emt 0:00:00]} Kh7 {[%emt 0:00:00]} 46. Rb4 {[%emt 0:00:00]} Kh6 {[%emt 0:00:00]} 47. Rxg4 {[%emt 0:00:00]} Kxh5 {[%emt 0:00:00]} 48. Rc4 {[%emt 0:00:00]} g5 {[%emt 0:00:00]} 49. b4 {[%emt 0:00:00]} Re5 {[%emt 0:00:00]} 50. Rc3 {[%emt 0:00:00]} Kg4 {[%emt 0:00:00]} 51. Rb3 {[%emt 0:00:00]} Rb5 {[%emt 0:00:00]} 52. Kg2 {[%emt 0:00:00]} Kf5 {[%emt 0:00:00]} 53. Kf3 {[%emt 0:00:00]} Ke5 {[%emt 0:00:00]} 54. Kg4 {[%emt 0:00:00]} Ke4 {[%emt 0:00:00]} 55. Rb1 {[%emt 0:05:02]} Kd3 {[%emt 0:00:00]} 56. Kh5 {[%emt 0:00:17]} Ke2 {[%emt 0:00:00]} 57. Rb3 {[%emt 0:01:10]} Kf2 {[%emt 0:00:00]} 58. g4 {[%emt 0:01:16]} Kg2 {[%emt 0:00:00]} 59. Kg6 {[%emt 0:00:38]} Kf2 {[%emt 0:00:00]} 60. Kf7 {[%emt 0:02:00]} Ke2 {[%emt 0:00:00]} 61. Kf6 {[%emt 0:00:46]} Kf2 {[%emt 0:00:00]} 62. Ke6 {[%emt 0:00:27]} Ke2 {[%emt 0:00:00]} 63. Kd6 {[%emt 0:00:15]} Kf2 {[%emt 0:00:00]} 64. Kc6 {[%emt 0:00:07]} Re5 {[%emt 0:00:00]} 65. b5 {[%emt 0:00:05]} Re1 {[%emt 0:01:04]} 66. b6 {[%emt 0:00:12]} Rc1+ {[%emt 0:00:09]} 67. Kb5 {[%emt 0:00:28]} Rh1 {[%emt 0:00:38]} 68. b7 {[%emt 0:00:10]} Rh8 {[%emt 0:00:17]} 69. Ka6 {[%emt 0:00:11]} Rh6+ {[%emt 0:00:22]} 70. Ka7 {[%emt 0:00:15]} Rh7 {[%emt 0:00:24]} 71. Ka8 {[%emt 0:00:09]} 1-0

[Event "7th Francophone-ch 2019"]
[Site "Paris"]
[Date "2019.08.09"]
[Round "6.8"]
[White "Najart, David"]
[Black "Rakotomaharo, Fy Antenaina"]
[Result "1/2-1/2"]
[ECO "A11"]
[WhiteElo "2280"]
[BlackElo "2419"]
[Annotator "NA"]
[PlyCount "158"]
[EventDate "2019.08.04"]
[EventType "swiss"]
[EventCountry "FRA"]
[SourceTitle "playchess.com"]
[Source "ChessBase"]
[SourceQuality "1"]
[TimeControl "40/5400+30:1800+30"]

1. c4 {[%emt 1:30:30]} Nf6 {[%emt 1:30:30]} 2. g3 {[%emt 0:00:00]} c6 {[%emt 0:00:00]} 3. Nf3 {[%emt 0:00:00]} d5 {[%emt 0:00:00]} 4. Bg2 {[%emt 0:00:00]} Bf5 {[%emt 0:00:00]} 5. O-O {[%emt 0:00:00]} e6 {[%emt 0:00:00]} 6. cxd5 {[%emt 0:00:00]} exd5 {[%emt 0:00:00]} 7. d3 {[%emt 0:00:00]} Na6 $11 {[%emt 0:00:00]} 8. a3 {[%emt 0:00:00]} Be7 {[%emt 0:00:00]} 9. Qc2 {[%emt 0:00:00]} O-O {[%emt 0:00:00]} 10. Nc3 {[%emt 0:00:00]} h6 {[%emt 0:00:00]} 11. h3 {[%emt 0:00:00]} Bh7 {[%emt 0:00:00]} 12. b4 {[%emt 0:00:00]} Nc7 {[%emt 0:00:00]} 13. Rb1 {[%emt 0:00:00]} Re8 {[%emt 0:00:00]} 14. a4 {[%emt 0:00:00]} Na6 {[%emt 0:00:00]} 15. Na2 {[%emt 0:00:00]} Rc8 {[%emt 0:00:00]} 16. Be3 {[%emt 0:00:00]} b6 {[%emt 0:00:00]} 17. Rfc1 {[%emt 0:00:00]} c5 {[%emt 0:00:00]} 18. bxc5 {[%emt 0:00:00]} bxc5 {[%emt 0:00:00]} 19. Rb7 {[%emt 0:00:00]} c4 {[%emt 0:00:00]} 20. Rxa7 {[%emt 0:00:00]} Nc5 {[%emt 0:00:00]} 21. Nd4 {[%emt 0:00:00]} Bd6 {[%emt 0:00:00]} 22. Nb5 {[%emt 0:00:00]} Rxe3 {[%emt 0:00:00]} 23. fxe3 {[%emt 0:00:00]} Bxg3 {[%emt 0:00:00]} 24. Qb2 {[%emt 0:00:37]} Qe8 {[%emt 0:00:00]} 25. e4 {[%emt 0:02:10]} dxe4 {[%emt 0:00:00]} 26. d4 {[%emt 0:02:08]} Nb3 {[%emt 0:00:29]} 27. Rxc4 {[%emt 0:00:54]} Rd8 {[%emt 0:07:05]} 28. e3 {[%emt 0:01:27]} Bb8 {[%emt 0:03:10]} 29. Ra6 {[%emt 0:02:47]} Qd7 {[%emt 0:00:50]} 30. Qxb3 {[%emt 0:00:19]} Nh5 {[%emt 0:00:08]} 31. Rc5 {[%emt 0:02:08]} Ng3 {[%emt 0:00:11]} 32. Nb4 {[%emt 0:00:50]} Qe7 {[%emt 0:01:47]} 33. Rd5 {[%emt 0:01:13]} Rc8 {[%emt 0:00:49]} 34. Rc6 {[%emt 0:00:35]} Rf8 {[%emt 0:00:07]} 35. Qc4 {[%emt 0:00:44]} Bf5 {[%emt 0:00:36]} 36. Qc5 {[%emt 0:00:55]} Qg5 {[%emt 0:00:26]} 37. Kf2 {[%emt 0:00:23]} Qh4 {[%emt 0:00:57]} 38. Ke1 {[%emt 0:00:45]} Bxh3 {[%emt 0:00:17]} 39. Bxh3 {[%emt 0:00:29]} Qxh3 {[%emt 0:00:01]} 40. Qc2 {[%emt 0:00:35]} Qh1+ {[%emt 0:02:04]} 41. Kd2 {[%emt 0:02:40]} Nf1+ {[%emt 0:00:39]} 42. Kc3 {[%emt 0:01:30]} Nxe3 {[%emt 0:00:07]} 43. Qe2 {[%emt 0:01:54]} Bf4 {[%emt 0:08:01]} 44. Rdc5 {[%emt 0:02:56]} Kh7 {[%emt 0:01:56]} 45. Kb3 {[%emt 0:03:30]} f5 {[%emt 0:04:56]} 46. Rc1 {[%emt 0:04:37]} Qh3 {[%emt 0:00:54]} 47. R6c3 {[%emt 0:00:42]} Bg5 {[%emt 0:00:03]} 48. Nd5 {[%emt 0:07:29]} f4 {[%emt 0:00:06]} 49. Nxe3 {[%emt 0:01:05]} fxe3 {[%emt 0:00:01]} 50. Qc4 {[%emt 0:00:20]} Rf2 {[%emt 0:02:25]} 51. d5 {[%emt 0:01:44]} Qg2 {[%emt 0:01:24]} 52. Rg1 {[%emt 0:06:07]} Rb2+ {[%emt 0:08:32]} 53. Ka3 {[%emt 0:00:06]} Be7+ {[%emt 0:04:03]} 54. d6 {[%emt 0:00:30]} Qxg1 {[%emt 0:00:03]} 55. Qxe4+ {[%emt 0:00:52]} Qg6 {[%emt 0:02:08]} 56. Qxe3 {[%emt 0:01:17]} Bg5 {[%emt 0:01:34]} 57. Qd3 {[%emt 0:00:19]} Qxd3 {[%emt 0:00:15]} 58. Rxd3 {[%emt 0:00:01]} Bc1 {[%emt 0:00:09]} 59. Rc3 {[%emt 0:01:20]} Rxb5+ {[%emt 0:01:03]} 60. Rxc1 {[%emt 0:00:02]} Rd5 {[%emt 0:00:07]} 61. Kb4 {[%emt 0:01:16]} Rxd6 {[%emt 0:00:12]} 62. a5 {[%emt 0:00:08]} h5 {[%emt 0:00:30]} 63. Kc5 {[%emt 0:00:37]} Rd8 {[%emt 0:00:43]} 64. Kb6 {[%emt 0:00:38]} Rb8+ {[%emt 0:01:18]} 65. Kc7 {[%emt 0:00:33]} Ra8 {[%emt 0:00:04]} 66. Rc5 {[%emt 0:00:19]} Kh6 {[%emt 0:00:09]} 67. Kb7 {[%emt 0:00:14]} Rf8 {[%emt 0:00:21]} 68. a6 {[%emt 0:00:17]} h4 {[%emt 0:00:37]} 69. a7 {[%emt 0:00:13]} h3 {[%emt 0:00:27]} 70. Rc3 {[%emt 0:01:15]} Rf7+ {[%emt 0:00:16]} 71. Kb8 {[%emt 0:00:35]} Rxa7 {[%emt 0:00:12]} 72. Rxh3+ {[%emt 0:00:14]} Kg5 {[%emt 0:00:09]} 73. Kxa7 {[%emt 0:00:04]} Kf4 {[%emt 0:00:09]} 74. Kb6 {[%emt 0:00:22]} g5 {[%emt 0:00:04]} 75. Kc5 {[%emt 0:00:17]} g4 {[%emt 0:00:05]} 76. Rh4 {[%emt 0:01:02]} Kf3 {[%emt 0:00:17]} 77. Kd4 {[%emt 0:01:07]} g3 {[%emt 0:00:11]} 78. Rh3 {[%emt 0:00:45]} Kf2 {[%emt 0:00:49]} 79. Ke4 {[%emt 0:00:26]} g2 {[%emt 0:00:19]} 1/2-1/2